[Event "57th Biel Festival MTO 2024"]
[White "Fromm,Marius"]
[Black "Kolbus,Dietmar"]
[Site "Biel"]
[Round "4.26"]
[Annotator "TA"]
[Result "1-0"]
[Date "2024.07.18"]
[WhiteElo "2465"]
[BlackElo "2234"]
[PlyCount "67"]
[TimeControl "60"]

{[%evp 14,67,43,40,64,43,113,46,33,35,36,39,60,41,43,43,45,45,59,37,71,54,43,56,56,44,98,104,96,108,326,243,822,700,922,908,928,760,757,671,709,584,727,727,718,699,600,644,619,538,693,622,941,934,865,857]} 1. e4 {[%emt 0:0:3]} e5 {[%emt 0:10:56]} 2. Nf3 {[%emt 0:0:11]} Nf6 {[%emt 0:0:47][%cal Bg8f6,Bf6e4,Be4d6][%mdl 32]} 3. Nxe5 {[%emt 0:3:19]} d6 {[%emt 0:0:7]} 4. Nf3 {[%emt 0:0:3]} Nxe4 {[%emt 0:0:6]} 5. d4 {[%emt 0:0:2]} d5 {[%emt 0:4:24]} 6. Bd3 {[%emt 0:0:4]} Be7 {[%emt 0:1:12]} 7. O-O {[%emt 0:0:16][%cal Bh1f1,Bf1e1,Be1e5][%mdl 32]} Nd6 {[%emt 0:0:34]} 8. Bf4 {[%emt 0:2:9]} Nd7 {[%emt 0:8:7]} 9. Re1 {[%emt 0:1:7]} Nf6 {[%emt 0:1:28]} (9... O-O $14 )10. Nbd2 {[%emt 0:1:4]} (10. Qe2 $16 )O-O $14 {[%emt 0:0:49] White is slightly better.} 11. c3 {[%emt 0:3:17][%cal Bc2c3,Bc3c4][%mdl 32]} Re8 {[%emt 0:1:42]} 12. Qc2 {[%emt 0:2:55]} Bf8 {[%emt 0:4:24]} 13. Re5 {[%emt 0:8:7]} c6 {[%emt 0:4:32]} 14. Rae1 {[%emt 0:0:16]} g6 {[%emt 0:5:32]} 15. Bg5 {[%emt 0:4:34] Hoping for Bxf6.} Re6 {[%emt 0:4:38]} 16. c4 {[%emt 0:2:34]} Nde8 {[%emt 0:11:10]} 17. Nf1 {[%emt 0:6:9][%cal Bd2f1,Bf1e3,Be3c4][%mdl 32]} Be7 {[%emt 0:15:41]} 18. Ne3 {[%emt 0:1:6]} (18. h3 {simplifies} Nc7 19. Ne3 Rxe5 20. dxe5 Nfe8 21. Bxe7 Qxe7 22. cxd5 Nxd5 23. Nxd5 cxd5 24. Rc1 )Nc7 {[%emt 0:3:35]} 19. h4 {[%emt 0:2:41]} (19. h3 {simplifies} Rxe5 20. dxe5 Nfe8 21. Bxe7 Qxe7 22. cxd5 Nxd5 23. Nxd5 cxd5 24. Rc1 )Kg7 {[%emt 0:9:19] [#]} (19... Rxe5 $14 20. dxe5 (20. Nxe5 Ne6 $11 )Nh5 )20. h5 $1 $16 {[%emt 0:1:53] White is much more active.} Rxe5 {[%emt 0:2:7]} (20... Nxh5 $2 21. Bxe7 Qxe7 22. Rxh5 $18 (22. cxd5 Nxd5 23. Nxd5 cxd5 $15 ))21. Nxe5 {[%emt 0:4:47]} (21. dxe5 $6 Nxh5 22. Bxe7 Qxe7 $11 )dxc4 $2 {[%emt 0:5:4] A mistake that costs the game.} (21... Nxh5 $16 {keeps fighting.} 22. Nxc6 bxc6 23. Bxe7 Qd7 (23... Qxe7 $2 24. Nf5+ Bxf5 25. Rxe7 $18 ))22. N3xc4 {[%emt 0:32:20]} Ng8 {[%emt 0:8:28] [#] Prevents Bh6+.} (22... Nxh5 $2 23. Bh6+ (23. Nxf7 Kxf7 24. Rxe7+ Qxe7 $18 )Kxh6 (23... Kg8 $2 24. Nxf7 Qxd4 25. Rxe7 $18 )24. Nxf7+ Kg7 25. Nxd8 $18 )(22... Be6 )23. h6+ $1 $18 {[%emt 0:6:29][%mdl 512] White is clearly winning.} Kf8 {[%emt 0:0:10] [#]} 24. Nxf7 $1 {[%emt 0:0:43][%mdl 512]} Kxf7 {[%emt 0:1:1]} (24... Qd5 25. Nce5 )25. Ne5+ {[%emt 0:0:44]} Kf8 {[%emt 0:0:11] [#]} 26. Nxg6+ $1 {[%emt 0:0:16][%mdl 512]} hxg6 {[%emt 0:0:20]} 27. h7 {[%emt 0:0:2] White wants to mate with Bc4.} Bxg5 {[%emt 0:1:0]} 28. Bc4 {[%emt 0:0:21][%csl Gc4][%cal Rh7g8]} (28. h8=B $2 {loses.} Bf6 29. Bxf6 Qxf6 $19 )Kg7 {[%emt 0:2:50]} 29. hxg8=Q+ {[%emt 0:0:22]} Qxg8 {[%emt 0:0:4]} 30. Bxg8 {[%emt 0:0:8] aiming for Qb3.} Bf5 {[%emt 0:1:24]} 31. Qc5 {[%emt 0:1:3]} Na6 {[%emt 0:10:29] [#]} 32. Re7+ $1 {[%emt 0:7:56]} Kf8 {[%emt 0:0:0]} (32... Bxe7 33. Qxe7+ )33. Rf7+ {[%emt 0:0:5]} (33. Rxb7+ $2 {perishes.} Nxc5 34. dxc5 Kxg8 $19 )Kxg8 {[%emt 0:0:0]} 34. Qc4 {[%emt 0:1:37] Weighted Error Value: White=0.21 (precise) /Black=0.45.  Loses game:     	---       	Black=1      Mistake:       	White=1     	Black=3      Inaccurate:     	---       	Black=2      OK:         	White=4     	Black=8      Best:        	---       	Black=1} 1-0

[Event "57th Biel Festival MTO 2024"]
[White "Vemparala,Nikash"]
[Black "Amartuvshin,Ganzorig"]
[Site "Biel"]
[Round "4.27"]
[Annotator "TA"]
[Result "0-1"]
[Date "2024.07.18"]
[WhiteElo "2170"]
[BlackElo "2411"]
[PlyCount "76"]
[TimeControl "60"]

{[%evp 9,76,0,2,0,2,-7,4,0,0,-28,0,-61,-51,-69,-15,-77,-67,-102,-100,-98,-85,-102,-75,-97,-78,-80,-81,-111,-83,-88,-88,-93,-98,-98,-101,-183,-120,-153,-164,-145,-176,-165,-171,-217,-187,-175,-123,-115,-97,-100,-107,-245,-104,-168,-135,-354,-363,-939,-915,-859,-745,-1737,-1547,-5289,-1817,-2379,-2222,-1681,-1631]} 1. e4 {[%emt 0:0:9][%cal Be2e4,Be4e5][%mdl 32]} c5 {[%emt 0:0:5]} 2. Nf3 {[%emt 0:0:6]} e6 {[%emt 0:0:3]} 3. b3 {[%emt 0:0:10]} a6 {[%emt 0:0:8]} 4. Bb2 {[%emt 0:0:2]} Nc6 {[%emt 0:0:4]} 5. c4 {[%emt 0:0:4]} Nf6 {[%emt 0:0:55]} 6. e5 {[%emt 0:0:48]} Ng4 {[%emt 0:12:48]} 7. h3 {[%emt 0:13:8]} Nh6 {[%emt 0:3:14]} 8. Nc3 {[%emt 0:3:7] The position is equal.} d6 {[%emt 0:2:47]} 9. exd6 {[%emt 0:1:42]} Bxd6 {[%emt 0:2:44]} 10. Ne4 {[%emt 0:5:11]} ({White should try} 10. d4 $11 )O-O $15 {[%emt 0:6:28]} 11. Be2 {[%emt 0:8:37]} Be7 {[%emt 0:15:11]} (11... Nf5 $15 )12. O-O {[%emt 0:3:9]} (12. d4 $1 $11 {remains equal.} )Nf5 {[%emt 0:1:21]} 13. Re1 {[%emt 0:13:6]} b6 {[%emt 0:0:59]} 14. Bf1 {[%emt 0:0:43]} Bb7 {[%emt 0:2:6]} 15. d3 {[%emt 0:4:26]} Qd7 {[%emt 0:3:33]} 16. Qd2 {[%emt 0:1:24]} Rad8 {[%emt 0:0:10]} 17. Rad1 {[%emt 0:1:36]} Qc7 {[%emt 0:5:6]} 18. Bc3 {[%emt 0:3:14]} h6 {[%emt 0:0:0]} 19. Qb2 Nfd4 {[%emt 0:4:43]} 20. Ned2 {[%emt 0:5:8][%cal Ob3b4]} Bf6 {[%emt 0:0:0]} 21. a3 {[%emt 0:1:43]} a5 {[%emt 0:3:11]} 22. Re3 {[%emt 0:2:30] [#]} (22. Be2 $17 )Rd7 {[%emt 0:17:7]} ({Better is} 22... Nxf3+ $1 $19 23. Nxf3 Nd4 )23. Ne4 {[%emt 0:0:40]} Nxf3+ {[%emt 0:2:18]} 24. Rxf3 Bd4 {[%emt 0:3:25]} 25. Bxd4 {[%emt 0:0:20]} cxd4 {[%emt 0:4:27]} ({Don't take} 25... Rxd4 26. Nc3 $17 )26. h4 {[%emt 0:1:1]} (26. Nd2 {might work better.} )f5 $19 {[%emt 0:0:0]} 27. Nd2 {[%emt 0:9:44]} Ne5 $36 {[%emt 0:0:0][%mdl 2048] Black is really pushing.} 28. Rh3 {[%emt 0:0:23]} Ng4 {[%emt 0:0:48] Black has more active pieces.} 29. Re1 {[%emt 0:1:42]} e5 {[%emt 0:0:50][%cal Oe5e4] ...e4! would now be deadly.} 30. b4 {[%emt 0:0:50]} (30. Be2 $17 )a4 {[%emt 0:5:10]} (30... e4 $19 {has better winning chances. White must now prevent ...Qf4.} 31. c5 bxc5 32. bxc5 e3 (32... Qxc5 $2 33. Be2 $19 )33. fxe3 dxe3 )31. Qc2 {[%emt 0:6:14]} (31. Be2 $17 {is a better defense.} )Re7 {[%cal Oe5e4] And now ...e4! would win.} 32. h5 $2 {[%emt 0:6:35] [#]} (32. c5 $17 )e4 $1 {[%emt 0:0:58] Threatens to win with ...e3.} 33. dxe4 {[%emt 0:0:0]} (33. c5 e3 34. fxe3 dxe3 (34... Rxe3 $2 35. Rexe3 dxe3 36. Nf3 $19 )(34... Nxe3 35. Qxa4 bxc5 36. bxc5 $17 )35. Nc4 bxc5 (35... Qf4 $2 36. Re2 $19 )36. Na5 )fxe4 {[%emt 0:0:42] Black is clearly winning.} 34. Nxe4 {[%emt 0:0:0] [#]} Nxf2 $1 {[%emt 0:3:42][%mdl 512]} 35. Rh4 {[%emt 0:0:0]} (35. Rf3 Rxf3 )Bxe4 36. Rhxe4 {[%emt 0:0:30]} Rxe4 {[%emt 0:0:0]} (36... Ng4 $142 37. g3 Qxg3+ (37... Ne3 $2 38. R1xe3 dxe3 39. Rxe7 $19 )38. Qg2 Qxe1 (38... Rxf1+ 39. Rxf1 Qxg2+ 40. Kxg2 $19 )39. Rxe1 Rxe1 )37. Rxe4 {[%emt 0:0:0]} Qg3 {[%emt 0:0:0] ( -> ...Nh3+)} 38. Be2 {[%emt 0:1:42]} d3 {[%emt 0:1:42] Weighted Error Value: White=0.74/Black=0.39.  Loses game:     	White=1     	---        Mistake:       	White=7     	Black=3      Inaccurate:     	White=3     	Black=1      OK:         	White=9     	Black=11     Strong:       	---       	Black=1} 0-1

[Event "57th Biel Festival MTO 2024"]
[White "Vantika Agrawal"]
[Black "Papaux,Steve"]
[Site "Biel"]
[Round "4.28"]
[Annotator "TA"]
[Result "1-0"]
[Date "2024.07.18"]
[WhiteElo "2390"]
[BlackElo "2188"]
[PlyCount "105"]
[TimeControl "60"]

{[%evp 15,105,18,27,31,25,10,13,0,0,0,0,0,0,-7,0,0,0,-9,26,28,33,38,37,12,20,11,18,16,14,20,20,14,55,49,49,45,129,116,128,116,151,145,165,166,259,252,389,383,452,446,410,280,280,262,278,275,281,281,283,286,282,282,425,423,430,428,651,639,692,691,685,685,636,549,706,685,677,663,656,641,641,602,613,496,634,625,619,613,29992,29993,29993,29976]} 1. d4 {[%emt 0:0:55]} d5 {[%emt 0:0:12]} 2. c4 {[%emt 0:0:6]} c6 {[%emt 0:0:32]} 3. Nf3 {[%emt 0:0:15]} Nf6 {[%emt 0:0:5]} 4. e3 {[%emt 0:0:5]} Bg4 {[%emt 0:0:47]} 5. h3 {[%emt 0:0:49]} Bxf3 {[%emt 0:0:5]} 6. Qxf3 {[%emt 0:0:19]} e6 {[%emt 0:0:2]} 7. Bd3 {[%emt 0:1:2]} Bb4+ {[%emt 0:0:19]} 8. Nc3 {[%emt 0:0:54]} Nbd7 {[%emt 0:0:29]} 9. O-O {[%emt 0:1:19]} O-O {[%emt 0:0:8]} 10. Qd1 {[%emt 0:1:23]} Qe7 {[%emt 0:0:46]} 11. Qb3 {[%emt 0:3:1] The position is equal.} dxc4 {[%emt 0:1:36]} 12. Bxc4 {[%emt 0:4:21]} Rab8 {[%emt 0:0:6]} 13. Bd2 {[%emt 0:7:13]} Bd6 {[%emt 0:2:25]} 14. Qc2 {[%emt 0:11:26]} e5 {[%emt 0:11:11]} 15. dxe5 {[%emt 0:10:25]} Qxe5 {[%emt 0:0:29]} 16. f4 {[%emt 0:4:44]} Qc5 {[%emt 0:0:15]} 17. Bd3 {[%emt 0:4:17]} b5 {[%emt 0:8:34] [#]} 18. b4 $1 {[%emt 0:22:11]} Qb6 {[%emt 0:0:57]} (18... Qxb4 $2 19. Ne4 (19. Nxb5 Qc5 $16 )Qa3 20. Bc1 $18 )19. Ne4 {[%emt 0:1:40]} Nxe4 {[%emt 0:2:50]} 20. Bxe4 {[%emt 0:0:7]} Nf6 {[%emt 0:6:36]} 21. Qxc6 {[%emt 0:7:3]} Nxe4 {[%emt 0:0:55]} 22. Qxe4 {[%emt 0:0:12]} Rfe8 {[%emt 0:0:48]} 23. Qf3 {[%emt 0:1:8]} Qb7 {[%emt 0:5:0]} 24. Qxb7 {[%emt 0:4:18]} Rxb7 {[%emt 0:0:5]} 25. Rac1 {[%emt 0:2:40]} f5 {[%emt 0:3:58] [#] White leaves nothing to chance now.} ({Black should try} 25... Rd7 $14 )26. Kf2 $1 $16 {[%emt 0:2:30]} Re4 {[%emt 0:1:3]} 27. a3 {[%emt 0:0:41]} Kf7 {[%emt 0:6:9]} 28. Rfd1 {[%emt 0:4:44]} a5 {[%emt 0:3:32][%cal Ra5b4]} 29. Rc6 {[%emt 0:4:19]} Be7 {[%emt 0:9:11]} (29... Re6 $142 30. g4 (30. bxa5 Bxa3 31. Rxe6 Kxe6 $16 )g6 )30. bxa5 $18 {[%emt 0:2:34]} Bxa3 {[%emt 0:0:5]} (30... Rd7 {was worth a try.} 31. Ke2 Bxa3 )31. Bc3 {[%emt 0:1:12]} Ra4 {[%emt 0:3:1]} 32. Rd5 {[%emt 0:1:18]} g6 {[%emt 0:1:7]} 33. a6 {[%emt 0:3:49]} Ra7 {[%emt 0:0:3]} 34. Rxb5 {[%emt 0:0:25] Rb7+ would now be deadly.} R4xa6 {[%emt 0:0:4]} 35. Rxa6 {[%emt 0:0:8]} Rxa6 {[%emt 0:0:8][%mdl 4096] Endgame. KRB-KRB} 36. Rb7+ {[%emt 0:0:3]} Ke6 {[%emt 0:0:15]} 37. Rxh7 {[%emt 0:0:24]} Bc5 {[%emt 0:4:32]} 38. Rc7 {[%emt 0:1:31]} Bb6 {[%emt 0:3:57]} (38... Be7 $142 39. Kf3 Ra2 )39. Rg7 {[%emt 0:2:22]} Kd5 {[%emt 0:0:5]} 40. Bd4 {[%emt 0:1:10]} ({Stronger than} 40. Rxg6 Bxe3+ 41. Kxe3 Rxg6 $11 )Bxd4 {[%emt 0:0:5] KRB-KR} (40... Bd8 $142 41. Kf3 Ba5 )41. Rd7+ {[%emt 0:50:17]} Ke6 {[%emt 0:50:4]} 42. Rxd4 {[%emt 0:0:5] KR-KR} Kf6 {[%emt 0:0:7]} 43. Kf3 {[%emt 0:0:0]} Ke6 {[%emt 0:0:0]} 44. Rd1 {[%emt 0:0:0]} Rb6 {[%emt 0:0:0]} 45. h4 {[%emt 0:0:0]} Rb7 {[%emt 0:0:0]} 46. g3 {[%emt 0:0:0][%cal Bg2g3,Bg3g4,Bg4g5][%mdl 32]} Ra7 {[%emt 0:0:0]} 47. Rb1 {[%emt 0:0:0]} Kf6 {[%emt 0:0:0]} 48. Rb6+ {[%emt 0:0:0]} Kg7 {[%emt 0:0:0]} 49. Rb3 {[%emt 0:0:0] Wards off Ra3} Re7 {[%emt 0:0:0]} 50. g4 {[%emt 0:0:0]} Kh6 {[%emt 0:0:0]} 51. g5+ {[%emt 0:0:0]} Kh5 {[%emt 0:0:0]} 52. Rb8 {[%emt 0:0:0]} Rh7 {[%emt 0:0:0]} 53. Rg8 {[%emt 0:0:0] Weighted Error Value: White=0.09 (flawless) /Black=0.27 (precise) .  Mistake:       	---       	Black=5      Inaccurate:     	White=1     	Black=3      OK:         	White=19    	Black=9      Best:        	White=2     	Black=1      Strong:       	White=1     	---} 1-0

[Event "57th Biel Festival MTO 2024"]
[White "Boldoo,Erdenepurev"]
[Black "Vincenti,Leonardo"]
[Site "Biel"]
[Round "4.29"]
[Annotator "TA"]
[Result "1/2-1/2"]
[Date "2024.07.18"]
[WhiteElo "2385"]
[BlackElo "2166"]
[PlyCount "212"]
[TimeControl "60"]

{[%evp 86,212,45,45,54,54,54,54,54,54,54,54,54,54,55,8,35,8,52,8,58,22,62,17,49,8,45,22,60,18,45,31,31,39,60,60,60,0,22,22,22,22,22,22,22,14,22,22,22,22,22,22,22,22,25,22,22,22,22,22,22,22,22,22,22,8,14,14,22,22,22,22,22,22,22,22,22,22,22,22,28,22,22,22,22,22,22,22,22,28,29,29,29,28,29,28,29,0,28,0,29,29,29,29,29,29,29,25,37,30,30,19,19,19,19,13,19,13,21,0,0,0,0,0,0,-8,0,-10,0]} 1. Nf3 {[%emt 0:0:3]} d5 {[%emt 0:0:5]} 2. c4 {[%emt 0:0:6]} e6 {[%emt 0:0:7]} 3. g3 {[%emt 0:0:13]} Nf6 {[%emt 0:0:20]} 4. Bg2 {[%emt 0:0:9]} dxc4 {[%emt 0:1:55]} 5. O-O {[%emt 0:0:24]} Be7 {[%emt 0:2:48]} 6. Qc2 {[%emt 0:1:25]} c5 {[%emt 0:5:30]} 7. Na3 {[%emt 0:2:19]} Nc6 {[%emt 0:1:1]} 8. Nxc4 {[%emt 0:0:14]} O-O {[%emt 0:11:15]} 9. b3 {[%emt 0:1:34] A14: English Opening: 1...e6 with b3 by White.} Qc7 {[%emt 0:6:30]} 10. Bb2 {[%emt 0:0:43]} b5 {[%emt 0:7:51]} 11. Nce5 {[%emt 0:0:8]} Bb7 {[%emt 0:2:33]} 12. Rac1 {[%emt 0:1:29]} Rac8 {[%emt 0:4:57]} 13. Qb1 $146 {[%emt 0:12:45]} ({Predecessor:} 13. Nxc6 Bxc6 14. Ng5 g6 15. Bxf6 Bxf6 16. Bxc6 Qxc6 17. Ne4 Be7 18. d3 f5 19. Nd2 {1-0 Svane,R (2620)-Ronka,E (2281) Titled Tuesday intern op 21st Mar Late blitz 2023 (3)} )Qb8 {[%emt 0:8:23]} 14. Nxc6 {[%emt 0:20:55]} Bxc6 {[%emt 0:0:5]} 15. Bxf6 {[%emt 0:0:29]} Bxf6 {[%emt 0:0:24]} 16. Rxc5 {[%emt 0:2:36]} Bxf3 {[%emt 0:12:13]} 17. Rxc8 {[%emt 0:0:8]} Rxc8 {[%emt 0:0:7]} 18. Bxf3 {[%emt 0:0:12]} Qe5 {[%emt 0:0:27]} 19. Qd3 {[%emt 0:6:26]} g6 {[%emt 0:9:0]} 20. e3 {[%emt 0:5:16]} b4 {[%emt 0:9:21]} 21. Qa6 {[%emt 0:1:49]} Rc2 {[%emt 0:4:37]} 22. d4 {[%emt 0:0:9]} Qf5 {[%emt 0:6:55]} 23. Be2 {[%emt 0:5:52]} Rd2 {[%emt 0:5:16]} 24. Rc1 {[%emt 0:5:52]} Qe4 {[%emt 0:0:44]} 25. a3 {[%emt 0:16:41]} Bxd4 {[%emt 0:6:36]} 26. axb4 {[%emt 0:3:38]} Bb6 {[%emt 0:0:53]} 27. Qc8+ {[%emt 0:1:41]} Rd8 {[%emt 0:0:25]} 28. Qc4 {[%emt 0:0:53]} Qe5 {[%emt 0:0:24]} 29. Rc2 {[%emt 0:0:46]} Qd6 {[%emt 0:1:10]} 30. Kg2 {[%emt 0:1:40]} Rd7 {[%emt 0:1:0]} 31. Bf3 {[%emt 0:0:18]} Rc7 {[%emt 0:0:23]} 32. Bc6 {[%emt 0:0:8]} Rc8 {[%emt 0:0:55]} 33. h4 {[%emt 0:2:21]} h5 {[%emt 0:0:55]} 34. b5 {[%emt 0:0:16]} Rd8 {[%emt 0:0:13]} 35. Be4 {[%emt 0:0:26]} Qe5 {[%emt 0:0:14]} 36. Bf3 {[%emt 0:1:34]} Kg7 {[%emt 0:0:23]} 37. Qe2 {[%emt 0:0:18]} Rd7 {[%emt 0:0:54]} 38. Bc6 {[%emt 0:0:26]} Rd8 {[%emt 0:0:10]} 39. Rc4 {[%emt 0:0:7]} Qd6 {[%emt 0:1:41]} 40. Rf4 {[%emt 0:0:27]} e5 {[%emt 0:1:1]} 41. Rc4 {[%emt 0:51:24]} Qd2 {[%emt 0:6:58]} 42. Kf1 {[%emt 0:0:0]} Qxe2+ {[%emt 0:6:1]} 43. Kxe2 {[%emt 0:0:0]} Kf6 {[%emt 0:0:19]} 44. e4 {[%emt 0:0:0]} Rd6 {[%emt 0:3:8]} 45. Bd5 {[%emt 0:0:0]} Kg7 {[%emt 0:0:43]} 46. Rc8 {[%emt 0:0:0]} Rd7 {[%emt 0:2:19]} 47. Re8 {[%emt 0:0:0]} Kf6 {[%emt 0:2:47]} 48. Rf8 {[%emt 0:0:0]} Kg7 {[%emt 0:0:21]} 49. Rb8 {[%emt 0:0:0]} Kf6 {[%emt 0:2:18]} 50. f4 {[%emt 0:0:0]} (50. f3 $14 )Re7 {[%emt 0:9:30]} 51. Kf3 {[%emt 0:0:0]} Ba5 {[%emt 0:1:53]} 52. Bc4 {[%emt 0:0:0]} Bb6 {[%emt 0:0:18]} (52... exf4 $11 53. gxf4 Kg7 )53. Rc8 {[%emt 0:0:0]} Rc7 {[%emt 0:2:50]} 54. Rf8 {[%emt 0:0:0]} (54. fxe5+ {simplifies} Kxe5 55. Rxc7 Bxc7 56. Bxf7 Kf6 57. Be8 )Re7 {[%emt 0:2:28]} 55. Rb8 {[%emt 0:0:0]} Rc7 {[%emt 0:3:26]} 56. Re8 {[%emt 0:0:0]} Re7 {[%emt 0:0:49]} 57. Rf8 {[%emt 0:0:0]} Ba5 {[%emt 0:2:2]} 58. fxe5+ {[%emt 0:0:0]} Kg7 $1 {[%emt 0:0:12]} 59. Rb8 {[%emt 0:0:0]} Bc7 {[%emt 0:0:57]} 60. Rb7 {[%emt 0:0:0]} Bd8 $1 {[%emt 0:1:32]} 61. Rb8 {[%emt 0:0:0]} Bc7 {[%emt 0:15:3]} 62. Rc8 {[%emt 0:0:0]} (62. Rb7 Bd8 63. Rb8 Bb6 $14 )Bxe5 {[%emt 0:0:16]} 63. Rc6 {[%emt 0:0:0]} Bd4 {[%emt 0:3:44]} 64. Bd5 {[%emt 0:0:0]} Bb6 {[%emt 0:0:22]} 65. g4 {[%emt 0:0:0]} hxg4+ {[%emt 0:0:49]} 66. Kxg4 {[%emt 0:0:0]} Rd7 {[%emt 0:2:13]} 67. h5 {[%emt 0:0:0]} gxh5+ {[%emt 0:0:42]} 68. Kxh5 {[%emt 0:0:2]} Re7 {[%emt 0:0:29]} 69. Kg4 {[%emt 0:0:3]} Bc7 {[%emt 0:1:10]} 70. Kf3 {[%emt 0:0:29]} Bb6 {[%emt 0:2:13]} 71. Rc1 {[%emt 0:1:31]} Kg6 {[%emt 0:1:10]} 72. Kf4 {[%emt 0:0:37]} Bc7+ {[%emt 0:1:5]} 73. Kg4 {[%emt 0:0:6]} Bb6 {[%emt 0:0:47]} 74. Rf1 {[%emt 0:0:2]} Bc7 {[%emt 0:0:0]} 75. Rf5 {[%emt 0:0:0]} f6 {[%emt 0:0:0]} 76. Rf2 {[%emt 0:0:0]} Bb6 {[%emt 0:0:0]} 77. Rc2 {[%emt 0:0:0]} Re8 {[%emt 0:0:0]} 78. Kf4 {[%emt 0:0:0]} Re5 {[%emt 0:0:0]} 79. Rc8 {[%emt 0:0:0]} Re7 {[%emt 0:0:0]} 80. Rg8+ {[%emt 0:0:0]} Rg7 {[%emt 0:0:0]} 81. Re8 {[%emt 0:0:0]} Bc7+ {[%emt 0:0:0]} 82. Ke3 {[%emt 0:0:0]} Kg5 {[%emt 0:0:41]} 83. Be6 {[%emt 0:0:0]} Bb6+ {[%emt 0:0:53]} 84. Kf3 {[%emt 0:0:0]} Kg6 {[%emt 0:2:3]} 85. Kg4 {[%emt 0:0:0]} Ba5 {[%emt 0:1:23]} 86. Rh8 {[%emt 0:0:0]} Re7 {[%emt 0:1:42]} 87. Bd5 {[%emt 0:0:0]} Rh7 {[%emt 0:0:57]} 88. Rg8+ {[%emt 0:0:0]} Rg7 {[%emt 0:0:2]} 89. Rf8 {[%emt 0:0:0]} Re7 {[%emt 0:0:34]} 90. Kf4 {[%emt 0:0:0]} Bb6 {[%emt 0:0:33]} 91. Rg8+ {[%emt 0:0:0]} Rg7 {[%emt 0:0:9]} 92. Re8 {[%emt 0:0:0]} Bc7+ {[%emt 0:0:46]} 93. Kg4 {[%emt 0:0:0]} f5+ {[%emt 0:0:35]} 94. Kf3 {[%emt 0:0:0]} ({Resist} 94. exf5+ $6 Kf6+ 95. Kf3 Kxf5 $18 )fxe4+ {[%emt 0:0:3]} 95. Kxe4 {[%emt 0:0:0]} Bb6 {[%emt 0:1:10]} 96. Ke5 {[%emt 0:0:0]} Bc7+ {[%emt 0:0:31]} 97. Ke6 {[%emt 0:0:0]} Kg5 {[%emt 0:0:10]} 98. Rf8 {[%emt 0:0:0]} Rg6+ {[%emt 0:0:20]} 99. Kd7 {[%emt 0:0:0]} Bb6 {[%emt 0:0:49]} 100. Bc6 {[%emt 0:0:0]} Rf6 {[%emt 0:0:12]} 101. Rb8 {[%emt 0:0:0]} Kf5 {[%emt 0:0:49]} 102. Rxb6 {[%emt 0:0:0]} axb6 {[%emt 0:0:4]} 103. Kc7 {[%emt 0:0:3]} Ke5 {[%emt 0:0:8]} 104. Kxb6 {[%emt 0:0:5]} Kd6 {[%emt 0:0:3]} 105. Ka6 {[%emt 0:0:41]} Kc7 {[%emt 0:1:27]} 106. Ka5 {[%emt 0:0:41]} Kb8 {[%emt 0:0:4]} 1/2-1/2

[Event "57th Biel Festival MTO 2024"]
[White "Coles,Ruben"]
[Black "Chinguun,Sumiya"]
[Site "Biel"]
[Round "4.30"]
[Annotator "RC"]
[Result "0-1"]
[Date "2024.07.18"]
[WhiteElo "2141"]
[BlackElo "2348"]
[PlyCount "62"]
[TimeControl "60"]

1. e4 {[%emt 0:2:25]} c5 {[%emt 0:2:21]} 2. Nf3 {[%emt 0:0:4]} d6 {[%emt 0:0:34]} 3. Bb5+ {[%emt 0:0:5]} Nd7 {[%emt 0:0:20]} 4. O-O {[%emt 0:0:8]} a6 {[%emt 0:0:27]} 5. Bxd7+ {[%emt 0:0:5]} Bxd7 {[%emt 0:1:4]} 6. c3 {[%emt 0:0:11]} Nf6 {[%emt 0:5:5]} 7. Re1 {[%emt 0:0:5]} Bc6 {[%emt 0:3:14]} 8. d4 {[%emt 0:0:10]} Bxe4 {[%emt 0:9:41]} 9. Bg5 {[%emt 0:0:13]} Bf5 {[%emt 0:7:3]} 10. d5 {[%emt 0:12:52]} Qc7 {[%emt 0:3:42]} 11. Bxf6 {[%emt 0:12:51]} gxf6 {[%emt 0:1:53]} 12. Nh4 {[%emt 0:2:28]} Bd7 {[%emt 0:4:0]} 13. Nd2 {[%emt 0:4:34]} h5 {[%emt 0:12:47]} 14. b4 {[%emt 0:6:8]} O-O-O {[%emt 0:1:44]} 15. a4 {[%emt 0:21:56]} e6 {[%emt 0:2:17]} 16. b5 {[%emt 0:4:42]} a5 {[%emt 0:2:1]} 17. Ne4 {[%emt 0:5:24]} Be7 {[%emt 0:5:38]} 18. Ng3 {[%emt 0:2:36]} Rdg8 {[%emt 0:5:21]} 19. Qd3 {[%emt 0:7:59]} Bd8 {[%emt 0:3:26]} 20. dxe6 {[%emt 0:4:15]} fxe6 {[%emt 0:1:28]} 21. Ng6 {[%emt 0:0:54]} Rh6 {[%emt 0:0:16]} 22. Nf4 {[%emt 0:0:38]} h4 {[%emt 0:0:46]} 23. Nf1 {[%emt 0:1:6]} f5 {[%emt 0:0:33]} 24. Qf3 {[%emt 0:9:6]} d5 {[%emt 0:1:47]} 25. Nd3 {[%emt 0:1:35]} Bf6 {[%emt 0:0:47]} 26. Ne3 {[%emt 0:3:35]} Kb8 {[%emt 0:3:27]} 27. b6 {[%emt 0:0:44]} Qd6 {[%emt 0:0:25]} 28. Nxc5 {[%emt 0:0:37]} Bc6 {[%emt 0:1:40]} 29. Nxe6 {[%emt 0:2:17]} d4 {[%emt 0:0:57]} 30. Qxf5 {[%emt 0:5:6]} dxe3 {[%emt 0:0:13]} 31. f3 {[%emt 0:0:30]} Bxc3 {[%emt 0:0:37]} 0-1

[Event "57th Biel Festival MTO 2024"]
[White "Arsenie,Cristian Marc"]
[Black "Rosen,Eric"]
[Site "Biel"]
[Round "4.31"]
[Annotator "RC"]
[Result "0-1"]
[Date "2024.07.18"]
[WhiteElo "2121"]
[BlackElo "2361"]
[PlyCount "54"]
[TimeControl "60"]

1. e4 {[%emt 0:0:3]} c5 {[%emt 0:0:20]} 2. Nf3 {[%emt 0:0:8]} e6 {[%emt 0:0:9]} 3. d4 {[%emt 0:0:6]} cxd4 {[%emt 0:0:8]} 4. Nxd4 {[%emt 0:0:5]} Nc6 {[%emt 0:0:5]} 5. Nc3 {[%emt 0:0:9]} Qc7 {[%emt 0:0:8]} 6. Be3 {[%emt 0:0:7]} a6 {[%emt 0:0:29]} 7. a3 {[%emt 0:0:28]} Nf6 {[%emt 0:1:2]} 8. f4 {[%emt 0:0:8]} d5 {[%emt 0:6:44]} 9. e5 {[%emt 0:1:25]} Nd7 {[%emt 0:0:5]} 10. Qg4 {[%emt 0:10:17]} Nc5 {[%emt 0:14:56]} 11. O-O-O {[%emt 0:3:59]} Bd7 {[%emt 0:2:53]} 12. Kb1 {[%emt 0:7:41]} b5 {[%emt 0:3:2]} 13. Be2 {[%emt 0:6:32]} Rb8 {[%emt 0:5:42]} 14. Qg3 {[%emt 0:2:23]} b4 {[%emt 0:4:28]} 15. axb4 {[%emt 0:1:3]} Rxb4 {[%emt 0:0:17]} 16. f5 {[%emt 0:8:36]} Qb8 {[%emt 0:14:18]} 17. b3 {[%emt 0:12:7]} Nxb3 {[%emt 0:5:11]} 18. cxb3 {[%emt 0:7:20]} Rxb3+ {[%emt 0:1:49]} 19. Nxb3 {[%emt 0:1:24]} Qxb3+ {[%emt 0:0:9]} 20. Ka1 {[%emt 0:1:8]} Qxc3+ {[%emt 0:0:21]} 21. Kb1 {[%emt 0:0:9]} Qb3+ {[%emt 0:0:32]} 22. Ka1 {[%emt 0:0:7]} Nb4 {[%emt 0:3:51]} 23. Rd2 {[%emt 0:1:33]} Nc2+ {[%emt 0:0:32]} 24. Rxc2 {[%emt 0:0:7]} Qxc2 {[%emt 0:0:6]} 25. Rb1 {[%emt 0:10:34]} Qa4+ {[%emt 0:1:35]} 26. Kb2 {[%emt 0:0:14]} Qa3+ {[%emt 0:1:39]} 27. Kc2 {[%emt 0:0:9]} Ba4+ {[%emt 0:0:10]} 0-1